[Event "*** Titled Tuesday Blitz"]
[Site "Chess.com"]
[Date "2019.10.01"]
[Round "7"]
[White "anon132639"]
[Black "Karacsonyi_Gellert"]
[Result "1-0"]
[WhiteElo "2684"]
[BlackElo "2531"]
[TimeControl "180+2"]
[EndTime "14:36:12 PDT"]
[Termination "anon132639 won by resignation"]

1. d4 {[%clk 0:03:01.9]} 1... Nf6 {[%clk 0:02:58.1]} 2. c4 {[%clk 0:03:02.7]}
2... e6 {[%clk 0:02:57.9]} 3. Nf3 {[%clk 0:03:04.2]} 3... d5 {[%clk 0:02:58.7]}
4. g3 {[%clk 0:03:05.4]} 4... dxc4 {[%clk 0:02:14.2]} 5. Bg2 {[%clk 0:03:05.4]}
5... Bd7 {[%clk 0:02:13.4]} 6. Ne5 {[%clk 0:03:00.7]} 6... Bc6 {[%clk
0:02:13.1]} 7. Nxc6 {[%clk 0:02:49.8]} 7... Nxc6 {[%clk 0:02:05.1]} 8. e3 {[%clk
0:02:43.8]} 8... Qd7 {[%clk 0:02:04.9]} 9. O-O {[%clk 0:02:44.6]} 9... O-O-O
{[%clk 0:02:05.5]} 10. Nd2 {[%clk 0:02:45.4]} 10... e5 {[%clk 0:02:06.2]} 11.
Nxc4 {[%clk 0:02:34.7]} 11... exd4 {[%clk 0:02:05.6]} 12. exd4 {[%clk
0:02:33.1]} 12... Nd5 {[%clk 0:02:07.1]} 13. Ne3 {[%clk 0:02:03.1]} 13... Nxe3
{[%clk 0:02:05.4]} 14. Bxe3 {[%clk 0:02:05]} 14... Nxd4 {[%clk 0:01:58.3]} 15.
Rc1 {[%clk 0:02:01.1]} 15... Kb8 {[%clk 0:01:28.3]} 16. Rc4 {[%clk 0:01:50.9]}
16... Ne6 {[%clk 0:01:19.3]} 17. Qb3 {[%clk 0:01:33.1]} 17... b6 {[%clk
0:01:20.1]} 18. Bc6 {[%clk 0:01:19.1]} 18... Qd3 {[%clk 0:01:17]} 19. Qa4 {[%clk
0:01:12.4]} 19... a5 {[%clk 0:01:03.8]} 20. Qb5 {[%clk 0:01:11.6]} 20... Rd6
{[%clk 0:00:55.6]} 21. Bxb6 {[%clk 0:00:58.8]} 21... Qxc4 {[%clk 0:00:55.9]} 22.
Ba7+ {[%clk 0:00:55.4]} 1-0

[Event "*** Titled Tuesday Blitz"]
[Site "Chess.com"]
[Date "2019.10.01"]
[Round "7"]
[White "XiaoKangZhong"]
[Black "Faustregel"]
[Result "1-0"]
[WhiteElo "2435"]
[BlackElo "2558"]
[TimeControl "180+2"]
[EndTime "14:36:18 PDT"]
[Termination "XiaoKangZhong won by resignation"]

1. e4 {[%clk 0:03:01.9]} 1... c5 {[%clk 0:02:59.1]} 2. c3 {[%clk 0:03:01.6]}
2... Nf6 {[%clk 0:02:58.3]} 3. e5 {[%clk 0:03:02.3]} 3... Nd5 {[%clk 0:02:59.7]}
4. d4 {[%clk 0:03:04.2]} 4... cxd4 {[%clk 0:02:57.8]} 5. cxd4 {[%clk 0:03:04.7]}
5... d6 {[%clk 0:02:58.5]} 6. Nf3 {[%clk 0:03:05.4]} 6... Nc6 {[%clk 0:02:58.3]}
7. Bc4 {[%clk 0:03:01.7]} 7... dxe5 {[%clk 0:02:56.8]} 8. dxe5 {[%clk
0:03:02.1]} 8... Nb6 {[%clk 0:02:47.9]} 9. Bb3 {[%clk 0:02:59.1]} 9... Qxd1+
{[%clk 0:02:47.5]} 10. Kxd1 {[%clk 0:02:56.6]} 10... Bg4 {[%clk 0:02:46.3]} 11.
Bf4 {[%clk 0:02:56.7]} 11... Nd4 {[%clk 0:02:38]} 12. Nd2 {[%clk 0:02:54.3]}
12... O-O-O {[%clk 0:02:33]} 13. Rc1+ {[%clk 0:02:52.5]} 13... Kb8 {[%clk
0:02:30]} 14. e6+ {[%clk 0:02:39.3]} 14... Ka8 {[%clk 0:02:30.5]} 15. Bc7 {[%clk
0:02:40]} 15... Nxb3 {[%clk 0:01:51.1]} 16. axb3 {[%clk 0:02:19.1]} 16... Rc8
{[%clk 0:01:51.1]} 17. exf7 {[%clk 0:02:15.9]} 17... Bh5 {[%clk 0:01:49.2]} 18.
Bxb6 {[%clk 0:02:09.6]} 18... Rxc1+ {[%clk 0:01:46.3]} 19. Kxc1 {[%clk 0:02:11]}
19... axb6 {[%clk 0:01:47]} 20. Ne5 {[%clk 0:02:10.1]} 20... e6 {[%clk 0:01:47]}
21. Kc2 {[%clk 0:02:07]} 21... Bd6 {[%clk 0:01:42]} 22. Nd7 {[%clk 0:02:00.7]}
22... Bg6+ {[%clk 0:01:33.6]} 23. Kc3 {[%clk 0:02:01.6]} 23... b5 {[%clk
0:00:20]} 24. Ra1+ {[%clk 0:01:31.2]} 1-0

[Event "*** Titled Tuesday Blitz"]
[Site "Chess.com"]
[Date "2019.10.01"]
[Round "7"]
[White "Sjakkerntobi"]
[Black "fidetrainerNET"]
[Result "0-1"]
[WhiteElo "2038"]
[BlackElo "2233"]
[TimeControl "180+2"]
[EndTime "14:36:50 PDT"]
[Termination "fidetrainerNET won by resignation"]

1. e4 {[%clk 0:03:01.9]} 1... c5 {[%clk 0:02:57.9]} 2. Nf3 {[%clk 0:03:02.8]}
2... d6 {[%clk 0:02:59]} 3. Bb5+ {[%clk 0:03:03.3]} 3... Nd7 {[%clk 0:02:59.3]}
4. Ba4 {[%clk 0:03:04.1]} 4... g6 {[%clk 0:03:00.4]} 5. O-O {[%clk 0:03:04.3]}
5... Bg7 {[%clk 0:03:01.6]} 6. c3 {[%clk 0:03:05.7]} 6... Nf6 {[%clk 0:02:52.4]}
7. Qe2 {[%clk 0:03:05.8]} 7... O-O {[%clk 0:02:52]} 8. d4 {[%clk 0:03:06.8]}
8... a6 {[%clk 0:02:52.3]} 9. e5 {[%clk 0:03:04.9]} 9... Nd5 {[%clk 0:02:51.6]}
10. e6 {[%clk 0:03:03.8]} 10... N7b6 {[%clk 0:02:48.1]} 11. exf7+ {[%clk
0:03:01.9]} 11... Kh8 {[%clk 0:02:47.4]} 12. Bb3 {[%clk 0:03:03.8]} 12... Rxf7
{[%clk 0:02:44.1]} 13. Qe4 {[%clk 0:02:48.5]} 13... Bf5 {[%clk 0:02:38.2]} 14.
Qh4 {[%clk 0:02:48.7]} 14... Bf6 {[%clk 0:02:28.1]} 15. Bg5 {[%clk 0:02:48.5]}
15... c4 {[%clk 0:02:09.4]} 16. Bd1 {[%clk 0:02:40.4]} 16... Qd7 {[%clk
0:02:00.5]} 17. Nbd2 {[%clk 0:02:33.2]} 17... Raf8 {[%clk 0:02:00.4]} 18. Bxf6+
{[%clk 0:02:30.7]} 18... exf6 {[%clk 0:02:00.4]} 19. Re1 {[%clk 0:02:24.8]}
19... g5 {[%clk 0:02:00.4]} 20. Qg3 {[%clk 0:02:20.8]} 20... Nf4 {[%clk
0:01:49.5]} 21. Ne4 {[%clk 0:01:46.6]} 21... Nbd5 {[%clk 0:01:48.6]} 22. Bc2
{[%clk 0:01:41.7]} 22... Rg7 {[%clk 0:01:26.3]} 23. Nfd2 {[%clk 0:00:58.9]}
23... b5 {[%clk 0:01:23.5]} 24. Rac1 {[%clk 0:00:57.8]} 24... h5 {[%clk
0:01:23.6]} 25. Qf3 {[%clk 0:00:53.1]} 25... Bg4 {[%clk 0:01:19.5]} 26. Qg3
{[%clk 0:00:51.1]} 26... h4 {[%clk 0:01:19.9]} 0-1

[Event "*** Titled Tuesday Blitz"]
[Site "Chess.com"]
[Date "2019.10.01"]
[Round "7"]
[White "novocane"]
[Black "dlp300"]
[Result "1-0"]
[WhiteElo "2322"]
[BlackElo "2494"]
[TimeControl "180+2"]
[EndTime "14:36:57 PDT"]
[Termination "novocane won by resignation"]

1. d4 {[%clk 0:02:54.3]} 1... Nf6 {[%clk 0:03:00.2]} 2. c4 {[%clk 0:02:55.3]}
2... g6 {[%clk 0:03:01.1]} 3. Nc3 {[%clk 0:02:56.3]} 3... d5 {[%clk 0:03:02.6]}
4. cxd5 {[%clk 0:02:57.6]} 4... Nxd5 {[%clk 0:03:04.5]} 5. e4 {[%clk 0:02:59.3]}
5... Nxc3 {[%clk 0:03:05.9]} 6. bxc3 {[%clk 0:03:01.2]} 6... Bg7 {[%clk
0:03:07.5]} 7. Qa4+ {[%clk 0:03:02]} 7... Nd7 {[%clk 0:02:56.2]} 8. Nf3 {[%clk
0:03:01.7]} 8... O-O {[%clk 0:02:56.4]} 9. Qa3 {[%clk 0:03:00.2]} 9... c5 {[%clk
0:02:52.3]} 10. Be3 {[%clk 0:03:00.8]} 10... b6 {[%clk 0:02:41.6]} 11. Bd3
{[%clk 0:02:56.1]} 11... Bb7 {[%clk 0:02:39.9]} 12. Rd1 {[%clk 0:02:43.8]} 12...
e6 {[%clk 0:02:38.4]} 13. O-O {[%clk 0:02:41.2]} 13... Qc7 {[%clk 0:02:38.9]}
14. Qc1 {[%clk 0:02:18.7]} 14... Rfd8 {[%clk 0:02:23.5]} 15. Bh6 {[%clk
0:02:16.5]} 15... Bh8 {[%clk 0:02:23.7]} 16. Qe3 {[%clk 0:02:03.4]} 16... Rac8
{[%clk 0:02:23.1]} 17. Rc1 {[%clk 0:01:57.8]} 17... Nf6 {[%clk 0:02:22]} 18. h3
{[%clk 0:01:52]} 18... Qc6 {[%clk 0:02:13.7]} 19. Rfe1 {[%clk 0:01:36.3]} 19...
Qa4 {[%clk 0:02:14.1]} 20. d5 {[%clk 0:01:29.8]} 20... exd5 {[%clk 0:02:07.9]}
21. e5 {[%clk 0:01:17.4]} 21... Ne4 {[%clk 0:02:01.9]} 22. c4 {[%clk 0:01:02.5]}
22... d4 {[%clk 0:02:01]} 23. Qf4 {[%clk 0:00:55.9]} 23... Nc3 {[%clk
0:01:59.6]} 24. Ng5 {[%clk 0:00:46.7]} 24... Qd7 {[%clk 0:01:59.8]} 25. e6
{[%clk 0:00:41.3]} 25... fxe6 {[%clk 0:02:00.7]} 26. Rxe6 {[%clk 0:00:42]} 26...
Re8 {[%clk 0:02:00.7]} 27. Bxg6 {[%clk 0:00:36.8]} 27... Rxe6 {[%clk 0:01:47]}
28. Bf7+ {[%clk 0:00:35.3]} 1-0

[Event "*** Titled Tuesday Blitz"]
[Site "Chess.com"]
[Date "2019.10.01"]
[Round "7"]
[White "Svet99"]
[Black "MikeSailer"]
[Result "1-0"]
[WhiteElo "2180"]
[BlackElo "2082"]
[TimeControl "180+2"]
[EndTime "14:37:01 PDT"]
[Termination "Svet99 won by checkmate"]

1. c4 {[%clk 0:03:01.9]} 1... c6 {[%clk 0:03:00.6]} 2. Nc3 {[%clk 0:03:02.9]}
2... d5 {[%clk 0:03:01.8]} 3. e3 {[%clk 0:03:04.1]} 3... Nf6 {[%clk 0:03:03.4]}
4. Nf3 {[%clk 0:03:04.9]} 4... Bf5 {[%clk 0:03:03.6]} 5. b3 {[%clk 0:03:05.9]}
5... e6 {[%clk 0:03:05.2]} 6. Bb2 {[%clk 0:03:07]} 6... Be7 {[%clk 0:03:06.9]}
7. Be2 {[%clk 0:03:08.1]} 7... O-O {[%clk 0:03:08.4]} 8. O-O {[%clk 0:03:09.1]}
8... Nbd7 {[%clk 0:03:09.8]} 9. d4 {[%clk 0:03:09.9]} 9... a6 {[%clk 0:03:09.4]}
10. Ne5 {[%clk 0:03:10.4]} 10... Nxe5 {[%clk 0:03:08.1]} 11. dxe5 {[%clk
0:03:10.8]} 11... Nd7 {[%clk 0:03:01.2]} 12. Qd4 {[%clk 0:03:09.6]} 12... Bc5
{[%clk 0:02:53.3]} 13. Qf4 {[%clk 0:03:09.9]} 13... h6 {[%clk 0:02:28.3]} 14.
Na4 {[%clk 0:03:08.3]} 14... Ba7 {[%clk 0:02:16.1]} 15. Qg3 {[%clk 0:03:07.9]}
15... Rc8 {[%clk 0:02:02.6]} 16. Rac1 {[%clk 0:03:06.2]} 16... dxc4 {[%clk
0:01:48.3]} 17. Rxc4 {[%clk 0:03:04]} 17... b5 {[%clk 0:01:45.1]} 18. Rh4 {[%clk
0:02:57.7]} 18... bxa4 {[%clk 0:01:41.6]} 19. Rxh6 {[%clk 0:02:58.1]} 19... axb3
{[%clk 0:01:34.6]} 20. axb3 {[%clk 0:02:58.1]} 20... Rb8 {[%clk 0:01:17.8]} 21.
Rh4 {[%clk 0:02:32.8]} 21... Rxb3 {[%clk 0:01:10.7]} 22. Bc1 {[%clk 0:02:25.4]}
22... a5 {[%clk 0:00:56.8]} 23. Rd1 {[%clk 0:02:26.1]} 23... Rb4 {[%clk
0:00:51.9]} 24. f4 {[%clk 0:02:19.6]} 24... Bc5 {[%clk 0:00:20.2]} 25. Qf2
{[%clk 0:02:19.8]} 25... Be7 {[%clk 0:00:20.3]} 26. Rh5 {[%clk 0:02:18.4]} 26...
Bg6 {[%clk 0:00:20.6]} 27. Rh3 {[%clk 0:02:18.8]} 27... Qc7 {[%clk 0:00:19.8]}
28. g4 {[%clk 0:02:19.4]} 28... Nc5 {[%clk 0:00:19.3]} 29. g5 {[%clk 0:02:19.8]}
29... f6 {[%clk 0:00:09.3]} 30. gxf6 {[%clk 0:02:08.1]} 30... gxf6 {[%clk
0:00:10.7]} 31. Qg2 {[%clk 0:02:05.7]} 31... Kf7 {[%clk 0:00:11.4]} 32. Bh5
{[%clk 0:02:04.3]} 32... Rg8 {[%clk 0:00:12.4]} 33. Bxg6+ {[%clk 0:02:04.6]}
33... Rxg6 {[%clk 0:00:12.9]} 34. Rh7+ {[%clk 0:02:05.5]} 34... Ke8 {[%clk
0:00:06.4]} 35. Qxg6+ {[%clk 0:02:05.9]} 35... Kf8 {[%clk 0:00:04.2]} 36. Qf7#
{[%clk 0:02:06.6]} 1-0

[Event "*** Titled Tuesday Blitz"]
[Site "Chess.com"]
[Date "2019.10.01"]
[Round "7"]
[White "BlueWizzard"]
[Black "Sanan_Sjugirov"]
[Result "1-0"]
[WhiteElo "2849"]
[BlackElo "2941"]
[TimeControl "180+2"]
[EndTime "14:37:04 PDT"]
[Termination "BlueWizzard won by resignation"]

1. e4 {[%clk 0:03:01.9]} 1... c5 {[%clk 0:03:00.5]} 2. Nc3 {[%clk 0:03:02.9]}
2... e6 {[%clk 0:03:00.7]} 3. Nf3 {[%clk 0:03:03.5]} 3... a6 {[%clk 0:03:01.4]}
4. a4 {[%clk 0:03:04]} 4... Nc6 {[%clk 0:02:58.3]} 5. Be2 {[%clk 0:03:03]} 5...
Nd4 {[%clk 0:02:51.7]} 6. O-O {[%clk 0:03:03.1]} 6... Ne7 {[%clk 0:02:52.5]} 7.
Nxd4 {[%clk 0:03:03.8]} 7... cxd4 {[%clk 0:02:53.2]} 8. Nb1 {[%clk 0:03:05.5]}
8... d5 {[%clk 0:02:46.4]} 9. d3 {[%clk 0:02:58.6]} 9... dxe4 {[%clk 0:02:40.4]}
10. dxe4 {[%clk 0:02:59.7]} 10... Nc6 {[%clk 0:02:41.6]} 11. Nd2 {[%clk
0:02:57.9]} 11... Be7 {[%clk 0:02:40.2]} 12. Nc4 {[%clk 0:02:56.2]} 12... e5
{[%clk 0:02:31.3]} 13. f4 {[%clk 0:02:51.5]} 13... exf4 {[%clk 0:02:30.5]} 14.
Bxf4 {[%clk 0:02:53.4]} 14... Be6 {[%clk 0:02:27.7]} 15. a5 {[%clk 0:02:54.7]}
15... O-O {[%clk 0:02:17.4]} 16. Nb6 {[%clk 0:02:52.7]} 16... Bc5 {[%clk
0:02:14.6]} 17. Bd3 {[%clk 0:02:47.5]} 17... Bxb6 {[%clk 0:02:13.7]} 18. axb6
{[%clk 0:02:49.4]} 18... Qxb6 {[%clk 0:02:15.6]} 19. e5 {[%clk 0:02:46.3]} 19...
Nb4 {[%clk 0:01:49.9]} 20. Ra3 {[%clk 0:02:47.1]} 20... Nxd3 {[%clk 0:01:47.1]}
21. Qxd3 {[%clk 0:02:33.5]} 21... Rac8 {[%clk 0:01:45.5]} 22. Qg3 {[%clk
0:02:29.5]} 22... d3+ {[%clk 0:01:39.2]} 23. Be3 {[%clk 0:02:30.4]} 23... Qxb2
{[%clk 0:01:38.4]} 24. Bh6 {[%clk 0:02:16]} 24... g6 {[%clk 0:01:37.9]} 25. Rxd3
{[%clk 0:02:16.8]} 25... Rfd8 {[%clk 0:01:16]} 26. Qh4 {[%clk 0:01:52.2]} 26...
Qb6+ {[%clk 0:00:57.8]} 27. Kh1 {[%clk 0:01:52.7]} 27... Bc4 {[%clk 0:00:51.7]}
28. e6 {[%clk 0:01:31.8]} 28... fxe6 {[%clk 0:00:05.1]} 1-0

[Event "*** Titled Tuesday Blitz"]
[Site "Chess.com"]
[Date "2019.10.01"]
[Round "7"]
[White "Alexander_Moskalenko"]
[Black "sandropozo"]
[Result "1-0"]
[WhiteElo "2881"]
[BlackElo "2618"]
[TimeControl "180+2"]
[EndTime "14:37:08 PDT"]
[Termination "Alexander_Moskalenko won on time"]

1. c4 {[%clk 0:02:57.7]} 1... d5 {[%clk 0:01:27]} 2. cxd5 {[%clk 0:02:54.8]}
2... Nf6 {[%clk 0:01:26.8]} 3. e4 {[%clk 0:02:50.9]} 3... c6 {[%clk 0:01:23.1]}
4. dxc6 {[%clk 0:02:51.2]} 4... Nxc6 {[%clk 0:01:23.5]} 5. Nc3 {[%clk
0:02:53.1]} 5... e5 {[%clk 0:01:23.6]} 6. Bb5 {[%clk 0:02:48.4]} 6... Bc5 {[%clk
0:01:19.3]} 7. Nf3 {[%clk 0:02:49.4]} 7... O-O {[%clk 0:01:19.6]} 8. O-O {[%clk
0:02:47.9]} 8... Bg4 {[%clk 0:01:20.1]} 9. Bxc6 {[%clk 0:02:42.6]} 9... bxc6
{[%clk 0:01:20.9]} 10. h3 {[%clk 0:02:44.3]} 10... Bh5 {[%clk 0:01:21.7]} 11. d3
{[%clk 0:02:40.4]} 11... Qe7 {[%clk 0:01:14.7]} 12. Qe2 {[%clk 0:02:41.8]} 12...
Rfd8 {[%clk 0:01:11]} 13. Be3 {[%clk 0:02:42.8]} 13... Bd6 {[%clk 0:01:06.8]}
14. Rac1 {[%clk 0:02:39.8]} 14... Nd7 {[%clk 0:01:05.4]} 15. Rfd1 {[%clk
0:02:35.9]} 15... Nc5 {[%clk 0:01:03.9]} 16. d4 {[%clk 0:02:23.3]} 16... exd4
{[%clk 0:01:04.7]} 17. Rxd4 {[%clk 0:02:25.2]} 17... Ne6 {[%clk 0:01:03.4]} 18.
Rc4 {[%clk 0:02:20.4]} 18... Nf4 {[%clk 0:00:46.4]} 19. Bxf4 {[%clk 0:02:21.6]}
19... Bxf4 {[%clk 0:00:48.3]} 20. Rd1 {[%clk 0:02:23.2]} 20... Rxd1+ {[%clk
0:00:48.3]} 21. Nxd1 {[%clk 0:02:25.1]} 21... Rd8 {[%clk 0:00:47.4]} 22. Ne3
{[%clk 0:02:19.4]} 22... Qe6 {[%clk 0:00:44.1]} 23. b3 {[%clk 0:02:20.7]} 23...
h6 {[%clk 0:00:35.5]} 24. g4 {[%clk 0:02:14.5]} 24... Bg6 {[%clk 0:00:35.2]} 25.
Nf5 {[%clk 0:02:14.9]} 25... Bxf5 {[%clk 0:00:35.1]} 26. gxf5 {[%clk 0:02:16.8]}
26... Qf6 {[%clk 0:00:35.1]} 27. Qc2 {[%clk 0:01:58.2]} 27... Qa1+ {[%clk
0:00:30.5]} 28. Kg2 {[%clk 0:01:57.5]} 28... Qf6 {[%clk 0:00:21.3]} 29. Rxc6
{[%clk 0:01:57.9]} 29... Qe7 {[%clk 0:00:23]} 30. Rc8 {[%clk 0:01:58.6]} 30...
Rxc8 {[%clk 0:00:23.2]} 31. Qxc8+ {[%clk 0:02:00.5]} 31... Kh7 {[%clk
0:00:25.1]} 32. Qc4 {[%clk 0:02:00.8]} 32... Bd6 {[%clk 0:00:21.5]} 33. Qd5
{[%clk 0:01:58.9]} 33... Bf4 {[%clk 0:00:22]} 34. e5 {[%clk 0:01:59.1]} 34... f6
{[%clk 0:00:20]} 35. exf6 {[%clk 0:01:55.3]} 35... Qxf6 {[%clk 0:00:21.1]} 36.
Qe6 {[%clk 0:01:55.6]} 1-0

[Event "*** Titled Tuesday Blitz"]
[Site "Chess.com"]
[Date "2019.10.01"]
[Round "7"]
[White "bascheyaro"]
[Black "KhazarBabazada"]
[Result "0-1"]
[WhiteElo "2757"]
[BlackElo "2851"]
[TimeControl "180+2"]
[EndTime "14:37:10 PDT"]
[Termination "KhazarBabazada won by checkmate"]

1. d4 {[%clk 0:03:01.9]} 1... Nf6 {[%clk 0:02:59.2]} 2. Nf3 {[%clk 0:03:01.8]}
2... g6 {[%clk 0:03:01.1]} 3. c4 {[%clk 0:03:02.8]} 3... Bg7 {[%clk 0:03:02.7]}
4. Nc3 {[%clk 0:03:03.4]} 4... d5 {[%clk 0:03:04.4]} 5. Bf4 {[%clk 0:03:03.6]}
5... O-O {[%clk 0:03:04.9]} 6. c5 {[%clk 0:02:44]} 6... Ne4 {[%clk 0:03:01.7]}
7. e3 {[%clk 0:02:37.9]} 7... b6 {[%clk 0:02:56.6]} 8. cxb6 {[%clk 0:02:36.4]}
8... axb6 {[%clk 0:02:58.5]} 9. Nxe4 {[%clk 0:02:35.3]} 9... dxe4 {[%clk
0:02:58.8]} 10. Nd2 {[%clk 0:02:36.3]} 10... Bb7 {[%clk 0:02:59.9]} 11. Qc2
{[%clk 0:02:37.1]} 11... Nc6 {[%clk 0:02:48.7]} 12. Bb5 {[%clk 0:02:29.1]} 12...
Nb4 {[%clk 0:02:48.4]} 13. Qb3 {[%clk 0:02:30.2]} 13... Nd3+ {[%clk 0:02:47.1]}
14. Bxd3 {[%clk 0:02:30.7]} 14... exd3 {[%clk 0:02:49]} 15. O-O {[%clk
0:02:31.5]} 15... h5 {[%clk 0:02:38.6]} 16. Rfc1 {[%clk 0:02:29.6]} 16... c5
{[%clk 0:02:36.1]} 17. dxc5 {[%clk 0:02:20.4]} 17... e5 {[%clk 0:02:37.5]} 18.
c6 {[%clk 0:02:18.4]} 18... Bc8 {[%clk 0:02:38.9]} 19. c7 {[%clk 0:01:45.6]}
19... Qe7 {[%clk 0:02:39.3]} 20. Bg3 {[%clk 0:01:37.3]} 20... h4 {[%clk
0:02:40.5]} 21. Bxh4 {[%clk 0:01:29.8]} 21... Qxh4 {[%clk 0:02:41]} 22. Qxd3
{[%clk 0:01:29]} 22... e4 {[%clk 0:02:40]} 23. Qb5 {[%clk 0:01:25.4]} 23... Ra5
{[%clk 0:02:39.1]} 24. Qxb6 {[%clk 0:01:21.8]} 24... Rh5 {[%clk 0:02:40.7]} 25.
Nf1 {[%clk 0:01:20]} 25... Be5 {[%clk 0:02:41]} 26. g3 {[%clk 0:01:20.7]} 26...
Qg4 {[%clk 0:02:42.3]} 27. Rc5 {[%clk 0:01:12]} 27... Qf3 {[%clk 0:02:40.4]} 28.
Nd2 {[%clk 0:01:10.4]} 28... Qg4 {[%clk 0:02:39.6]} 29. Qa5 {[%clk 0:00:55.5]}
29... f6 {[%clk 0:02:39.6]} 30. Qb5 {[%clk 0:00:41.9]} 30... Kg7 {[%clk
0:02:39.2]} 31. Qc6 {[%clk 0:00:20.1]} 31... Rxh2 {[%clk 0:02:34.8]} 32. Qxe4
{[%clk 0:00:19.6]} 32... Qxe4 {[%clk 0:02:25.3]} 33. Nxe4 {[%clk 0:00:20.4]}
33... Rfh8 {[%clk 0:02:27.2]} 34. Rac1 {[%clk 0:00:21]} 34... Bg4 {[%clk
0:02:19.3]} 35. f4 {[%clk 0:00:05.7]} 35... Rh1+ {[%clk 0:02:20]} 36. Kf2 {[%clk
0:00:06.9]} 36... R8h2# {[%clk 0:02:21.5]} 0-1

[Event "*** Titled Tuesday Blitz"]
[Site "Chess.com"]
[Date "2019.10.01"]
[Round "7"]
[White "kreonx"]
[Black "MarcoRiehle"]
[Result "0-1"]
[WhiteElo "2263"]
[BlackElo "2593"]
[TimeControl "180+2"]
[EndTime "14:37:14 PDT"]
[Termination "MarcoRiehle won by resignation"]

1. e4 {[%clk 0:03:01.9]} 1... e5 {[%clk 0:02:59.5]} 2. Nc3 {[%clk 0:03:00.1]}
2... Nf6 {[%clk 0:03:00.4]} 3. g3 {[%clk 0:03:01.5]} 3... c6 {[%clk 0:02:59.8]}
4. Bg2 {[%clk 0:03:00.7]} 4... d5 {[%clk 0:02:58.1]} 5. exd5 {[%clk 0:01:26.7]}
5... cxd5 {[%clk 0:03:00]} 6. d4 {[%clk 0:01:28.1]} 6... e4 {[%clk 0:02:51.7]}
7. f3 {[%clk 0:01:29.3]} 7... Bb4 {[%clk 0:02:38.7]} 8. a3 {[%clk 0:01:27.1]}
8... Bxc3+ {[%clk 0:02:37.3]} 9. bxc3 {[%clk 0:01:27.7]} 9... O-O {[%clk
0:02:34.2]} 10. Bg5 {[%clk 0:01:28.3]} 10... exf3 {[%clk 0:02:31.6]} 11. Nxf3
{[%clk 0:01:29.2]} 11... Re8+ {[%clk 0:02:31.6]} 12. Ne5 {[%clk 0:01:30.1]}
12... Nc6 {[%clk 0:02:27.5]} 13. O-O {[%clk 0:01:30.1]} 13... Nxe5 {[%clk
0:02:24.9]} 14. dxe5 {[%clk 0:01:29]} 14... Rxe5 {[%clk 0:02:26.2]} 15. Bxf6
{[%clk 0:01:29.7]} 15... gxf6 {[%clk 0:02:23.3]} 16. Qf3 {[%clk 0:01:19.5]}
16... Be6 {[%clk 0:02:16]} 17. Qxf6 {[%clk 0:01:16.7]} 17... Qxf6 {[%clk
0:02:12.8]} 18. Rxf6 {[%clk 0:01:18.2]} 18... Rc8 {[%clk 0:02:13.7]} 19. Rb1
{[%clk 0:01:10.1]} 19... b6 {[%clk 0:02:04.1]} 20. Rb3 {[%clk 0:01:09.4]} 20...
Re2 {[%clk 0:02:01.3]} 21. Rf2 {[%clk 0:01:05.8]} 21... Rxf2 {[%clk 0:02:01]}
22. Kxf2 {[%clk 0:01:06.7]} 22... d4 {[%clk 0:02:02.2]} 23. Rb4 {[%clk
0:01:07.3]} 23... Rxc3 {[%clk 0:02:00.9]} 24. Rxd4 {[%clk 0:01:05.5]} 24...
Rxc2+ {[%clk 0:02:00.8]} 25. Kg1 {[%clk 0:01:05.8]} 25... Ra2 {[%clk 0:01:46.7]}
26. Rd3 {[%clk 0:01:04]} 26... Kg7 {[%clk 0:01:41.3]} 27. h3 {[%clk 0:01:00.6]}
27... b5 {[%clk 0:01:35.3]} 28. g4 {[%clk 0:01:00.4]} 28... a5 {[%clk
0:01:32.7]} 29. Kh2 {[%clk 0:00:44.5]} 29... Bc4 {[%clk 0:01:22.6]} 30. Rd8
{[%clk 0:00:18.7]} 30... Bf1 {[%clk 0:01:20.2]} 0-1

[Event "*** Titled Tuesday Blitz"]
[Site "Chess.com"]
[Date "2019.10.01"]
[Round "7"]
[White "nitpicker"]
[Black "PotapovaM"]
[Result "0-1"]
[WhiteElo "2263"]
[BlackElo "2420"]
[TimeControl "180+2"]
[EndTime "14:37:19 PDT"]
[Termination "PotapovaM won by resignation"]

1. d4 {[%clk 0:03:01.9]} 1... Nf6 {[%clk 0:03:00.5]} 2. c4 {[%clk 0:03:02.2]}
2... c5 {[%clk 0:02:57.2]} 3. d5 {[%clk 0:03:01.3]} 3... b5 {[%clk 0:02:58.3]}
4. cxb5 {[%clk 0:03:01.7]} 4... a6 {[%clk 0:02:59.4]} 5. bxa6 {[%clk 0:02:58.7]}
5... g6 {[%clk 0:03:01.1]} 6. Nc3 {[%clk 0:02:59.3]} 6... Bg7 {[%clk 0:03:02.3]}
7. Nf3 {[%clk 0:02:57.3]} 7... O-O {[%clk 0:03:01.5]} 8. e4 {[%clk 0:02:57.7]}
8... Qa5 {[%clk 0:03:02.6]} 9. Bd2 {[%clk 0:02:35.5]} 9... d6 {[%clk 0:03:03.1]}
10. h3 {[%clk 0:02:34.7]} 10... Bxa6 {[%clk 0:03:02.1]} 11. Bxa6 {[%clk
0:02:33.8]} 11... Qxa6 {[%clk 0:03:04]} 12. Qe2 {[%clk 0:02:31.2]} 12... Nbd7
{[%clk 0:02:50.3]} 13. Qxa6 {[%clk 0:02:23.6]} 13... Rxa6 {[%clk 0:02:52.2]} 14.
O-O {[%clk 0:02:24]} 14... Rb8 {[%clk 0:02:52.5]} 15. Rab1 {[%clk 0:02:16.3]}
15... Ne8 {[%clk 0:02:35.6]} 16. a3 {[%clk 0:01:31.8]} 16... Nc7 {[%clk
0:02:31.7]} 17. Rfe1 {[%clk 0:01:12]} 17... Kf8 {[%clk 0:02:25]} 18. Re2 {[%clk
0:00:59.3]} 18... h6 {[%clk 0:02:11.7]} 19. Be1 {[%clk 0:00:59.5]} 19... Bxc3
{[%clk 0:02:02.8]} 20. Bxc3 {[%clk 0:00:57.1]} 20... Rxa3 {[%clk 0:02:02.2]} 21.
Rbe1 {[%clk 0:00:57.9]} 21... Ra2 {[%clk 0:01:56.1]} 22. Bd2 {[%clk 0:00:43.4]}
22... h5 {[%clk 0:01:41.2]} 23. Bc1 {[%clk 0:00:41.6]} 23... f6 {[%clk
0:01:37.9]} 24. g4 {[%clk 0:00:31.1]} 24... hxg4 {[%clk 0:01:32.6]} 25. hxg4
{[%clk 0:00:32]} 25... g5 {[%clk 0:01:34.1]} 26. Kg2 {[%clk 0:00:27.9]} 26...
Kf7 {[%clk 0:01:34.1]} 27. Rh1 {[%clk 0:00:27.2]} 27... Kg7 {[%clk 0:01:31.7]}
28. Nxg5 {[%clk 0:00:17.5]} 28... fxg5 {[%clk 0:01:30]} 29. Bxg5 {[%clk
0:00:19.4]} 29... Nf6 {[%clk 0:01:27.5]} 30. Bxf6+ {[%clk 0:00:07]} 30... exf6
{[%clk 0:01:25.8]} 31. f4 {[%clk 0:00:07.3]} 31... Rbxb2 {[%clk 0:01:26.2]} 32.
Rxb2 {[%clk 0:00:07.5]} 32... Rxb2+ {[%clk 0:01:28.1]} 33. Kf3 {[%clk
0:00:08.8]} 33... Nb5 {[%clk 0:01:28.3]} 34. Ra1 {[%clk 0:00:09.2]} 34... Nd4+
{[%clk 0:01:29.1]} 35. Ke3 {[%clk 0:00:10.7]} 35... Nc2+ {[%clk 0:01:30]} 0-1